Workbook

Sheet sheet1
A1: 阜新高等专科学校 阜新市卫生学校2023年公开招聘教师成绩公告
A2: 报考岗位 | B2: 准考证号 | C2: 姓名 | D2: 笔试 成绩 | E2: 笔试成绩50% | F2: 面试（试讲） 成绩 | G2: 面试（试讲） 成绩50% | H2: 面试（实操） 成绩 | I2: 面试（实操） 成绩50% | J2: 面试总成绩 | K2: 面试总成绩50% | L2: 总成绩 | M2: 按岗位排名
A3: 畜牧兽医类专业教师 | B3: 23010101007 | C3: 董云凤 | D3: 64.1 | E3: =D3*0.5 -> 32.05 | F3: 92.2 | G3: =F3*0.5 -> 46.1 | H3: 94.6 | I3: =H3*0.5 -> 47.3 | J3: =G3+I3 -> 93.4 | K3: =J3*0.5 -> 46.7 | L3: =E3+K3 -> 78.75 | M3: 1
A4: 畜牧兽医类专业教师 | B4: 23010102011 | C4: 张恒瑞 | D4: 67.3 | E4: 33.65 | F4: 88.2 | G4: 44.1 | H4: 83.6 | I4: 41.8 | J4: 85.9 | K4: 42.95 | L4: 76.6 | M4: 2
A5: 畜牧兽医类专业教师 | B5: 23010102001 | C5: 王云冲 | D5: 58.5 | E5: 29.25 | F5: 91.6 | G5: 45.8 | H5: 87.4 | I5: 43.7 | J5: 89.5 | K5: 44.75 | L5: 74 | M5: 3
A6: 畜牧兽医类专业教师 | B6: 23010101020 | C6: 刘兆慧 | D6: 54.9 | E6: 27.45 | F6: 75.6 | G6: 37.8 | H6: 97.4 | I6: 48.7 | J6: 86.5 | K6: 43.25 | L6: 70.7 | M6: 4
A7: 畜牧兽医类专业教师 | B7: 23010101029 | C7: 王岩 | D7: 58.8 | E7: 29.4 | F7: 67.4 | G7: 33.7 | H7: 65 | I7: 32.5 | J7: 66.2 | K7: 33.1 | L7: 62.5 | M7: 5
A8: 畜牧兽医类专业教师 | B8: 23010102013 | C8: 赵敏 | D8: 55.8 | E8: 27.9 | F8: 72.4 | G8: 36.2 | H8: 44 | I8: 22 | J8: 58.2 | K8: 29.1 | L8: 57 | M8: 6
A9: 畜牧兽医类专业教师 | B9: 23010102019 | C9: 朱耀才 | D9: 54.0 | E9: 27 | F9: 61.2 | G9: 30.6 | H9: 41.8 | I9: 20.9 | J9: 51.5 | K9: 25.75 | L9: 52.75 | M9: 7
A10: 畜牧兽医类专业教师 | B10: 23010101004 | C10: 陈浩 | D10: 58.3 | E10: 29.15 | F10: 0 | G10: 0 | H10: 0 | I10: 0 | J10: 0 | K10: 0 | L10: 29.15 | M10: 8
A11: 医学护理类专业教师 | B11: 23010203018 | C11: 宫欣雨 | D11: 79.4 | E11: 39.7 | F11: 94.6 | G11: 47.3 | H11: 94.8 | I11: 47.4 | J11: 94.7 | K11: 47.35 | L11: 87.05 | M11: 1
A12: 医学护理类专业教师 | B12: 23010203019 | C12: 关凌 | D12: 79.8 | E12: 39.9 | F12: 95.2 | G12: 47.6 | H12: 92.4 | I12: 46.2 | J12: 93.8 | K12: 46.9 | L12: 86.8 | M12: 2
A13: 医学护理类专业教师 | B13: 23010204013 | C13: 卢淑超 | D13: 77.1 | E13: 38.55 | F13: 92 | G13: 46 | H13: 98.2 | I13: 49.1 | J13: 95.1 | K13: 47.55 | L13: 86.1 | M13: 3
A14: 医学护理类专业教师 | B14: 23010205003 | C14: 肖添 | D14: 74.8 | E14: 37.4 | F14: 71.6 | G14: 35.8 | H14: 86.4 | I14: 43.2 | J14: 79 | K14: 39.5 | L14: 76.9 | M14: 4
A15: 医学护理类专业教师 | B15: 23010205010 | C15: 张令仪 | D15: 78.9 | E15: 39.45 | F15: 83.8 | G15: 41.9 | H15: 0 | I15: 0 | J15: 41.9 | K15: 20.95 | L15: 60.4 | M15: 5
A16: 医学护理类专业教师 | B16: 23010203009 | C16: 陈曦 | D16: 75.1 | E16: 37.55 | F16: 81.2 | G16: 40.6 | H16: 0 | I16: 0 | J16: 40.6 | K16: 20.3 | L16: 57.85 | M16: 6
A17: 道桥工程类教师 | B17: 23010306002 | C17: 郭天宇 | D17: 54.5 | E17: =D17*0.5 -> 27.25 | F17: 82.8 | G17: =F17*0.5 -> 41.4 | H17: 98.2 | I17: =H17*0.5 -> 49.1 | J17: =G17+I17 -> 90.5 | K17: =J17*0.5 -> 45.25 | L17: 72.5 | M17: 1
A18: 道桥工程类教师 | B18: 23010306009 | C18: 王阔 | D18: 51.9 | E18: 25.95 | F18: 86.6 | G18: 43.3 | H18: 69 | I18: 34.5 | J18: 77.8 | K18: 38.9 | L18: 64.85 | M18: 2
A19: 道桥工程类教师 | B19: 23010306001 | C19: 白伟才 | D19: 46.3 | E19: 23.15 | F19: 75.8 | G19: 37.9 | H19: 0 | I19: 0 | J19: 37.9 | K19: 18.95 | L19: 42.1 | M19: 3
A20: 道桥工程类教师 | B20: 23010306011 | C20: 王亚楠 | D20: 45.2 | E20: 22.6 | F20: 63.8 | G20: 31.9 | H20: 9.8 | I20: 4.9 | J20: 36.8 | K20: 18.4 | L20: 41 | M20: 4
A21: 医学护理专业教师 | B21: 23020308015 | C21: 张艺潆 | D21: 70.3 | E21: =D21*0.5 -> 35.15 | F21: 96.6 | G21: =F21*0.5 -> 48.3 | H21: 97.4 | I21: =H21*0.5 -> 48.7 | J21: =G21+I21 -> 97 | K21: =J21*0.5 -> 48.5 | L21: 83.65 | M21: 1
A22: 医学护理专业教师 | B22: 23020308010 | C22: 马浚 | D22: 75.9 | E22: 37.95 | F22: 88.8 | G22: 44.4 | H22: 84.2 | I22: 42.1 | J22: 86.5 | K22: 43.25 | L22: 81.2 | M22: 2
A23: 医学护理专业教师 | B23: 23020308016 | C23: 张婴媚 | D23: 65.8 | E23: =D23*0.5 -> 32.9 | F23: 89.6 | G23: =F23*0.5 -> 44.8 | H23: 94.2 | I23: =H23*0.5 -> 47.1 | J23: =G23+I23 -> 91.9 | K23: =J23*0.5 -> 45.95 | L23: 78.85 | M23: 3
A24: 医学护理专业教师 | B24: 23020308017 | C24: 郑楠 | D24: 69.2 | E24: 34.6 | F24: 75.8 | G24: 37.9 | H24: 89.8 | I24: 44.9 | J24: 82.8 | K24: 41.4 | L24: 76 | M24: 4
A25: 医学类专业教师 | B25: 23020207007 | C25: 韩为 | D25: 75.1 | E25: =D25*0.5 -> 37.55 | F25: 69.4 | G25: =F25*0.5 -> 34.7 | H25: —— | I25: —— | J25: 34.7 | K25: —— | L25: =E25+G25 -> 72.25 | M25: 1
